{"text_format":"1","workbook":"xlsx","n_sheets":15,"sheets":["MacBook Air","MacBook Pro","MacMini","Mac Studio","iMac","Mac Accesories","Display","iPad","iPad Accesories","Watch","Watch Accesories","iPhone","iPhone Accesories","Casti","Query2"],"not_rendered":{"charts":0,"images":1,"macros":1,"external_links":0,"defined_names":38,"comments":0,"pivot_tables":0},"unopened":[],"bounds":{"document_bytes":16777216,"sheet_cells":100000,"rows_first":2000,"rows_last":500,"rows_between":2000,"halvings":0,"cell_chars":16384,"cell_head_chars":4096},"cells_cut":0,"cells_raw":0,"read":"whole","date_system":"1900"}

{"sheet":"MacBook Air","index":0,"n_rows":16,"n_cols":20,"rows_kept":16,"cut":false,"hidden":false,"merged":[[12,3,13,3]]}
[]
[]
[]
[]
[]
[]
[]
[]
[]
[]
[]
[]
[null,null,null,"MacBook Air"]
[]
["Producator","Part Number","Apple Categ","Descriere","Garantie Standard","Pret lei fara tva","Bonus Push-Sales Rebate Ianuarie (CN la final de luna) lei buc","Bonus Trade-IN (exclude valoare buy-back) lei buc","Garantie + 12 Luni lei fara tva","Garantie + 24 Luni lei fara tva","Garantie +36 Luni lei fara tva","Garantie + 48 Luni lei fara tva","Stoc","Rezervat","Diagonala Display","Culoare","Procesor","Ram","Stocare","Tastatura"]
["Apple","MC7W4ZE/A","MacBook Air M2","MacBook Air 13.6\" Retina/Apple M2 (CPU 8-core, GPU 8-core, Neural Engine16-core)/16GB/256GB - Starlight - INT KB (2022)","12 Luni",{"$f":"VLOOKUP(Table1[[#This Row],[Part Number]],Query2!A:D,4,0)","v":3641.44},200,250,{"$f":"Table1[[#This Row],[Pret lei fara tva]]*4.25%","v":154.7612},{"$f":"Table1[[#This Row],[Pret lei fara tva]]*6.67%","v":242.88404799999998},{"$f":"Table1[[#This Row],[Pret lei fara tva]]*7.58%","v":276.02115200000003},{"$f":"Table1[[#This Row],[Pret lei fara tva]]*8.09%","v":294.59249599999998},{"$f":"VLOOKUP(Table1[[#This Row],[Part Number]],Query2!A:D,2,0)","v":0},{"$f":"VLOOKUP(Table1[[#This Row],[Part Number]],Query2!A:D,3,0)","v":0},"13.6\"","Starlight","Apple M2 (CPU 8-core, GPU 8-core, Neural Engine16-core)","16GB","256GB","INT KB"]

{"sheet":"MacBook Pro","index":1,"n_rows":16,"n_cols":21,"rows_kept":16,"cut":false,"hidden":false,"merged":[[12,3,13,3]]}
[]
[]
[]
[]
[]
[]
[]
[]
[]
[]
[]
[]
[null,null,null,"MacBook Pro"]
[]
["Producator","Part Number","Apple Categ","Descriere","Garantie Standard","Pret lei fara tva","Bonus Push-Sales Rebate Ianuarie (CN la final de luna) lei buc","Bonus Trade-IN (exclude valoare buy-back) lei buc","Garantie + 12 Luni lei fara tva","Garantie + 24 Luni lei fara tva","Garantie +36 Luni lei fara tva","Garantie + 48 Luni lei fara tva","Stoc","Rezervat","Diagonala Display","Culoare","Procesor","Ram","Stocare","Tastatura","Nano-Texture"]
["Apple","MDE04RO/A","MacBook PRO New M5","MacBook Pro 14.2\"/Apple M5 (CPU 10-core, GPU 10-core, Neural Engine16-core)/16GB/512GB – Space Black – INT KB (No Adapter) - 2025","12 Luni",{"$f":"VLOOKUP(Table2[[#This Row],[Part Number]],Query2!A:D,4,0)","v":6711.64},200,500,{"$f":"Table2[[#This Row],[Pret lei fara tva]]*4.25%","v":285.24470000000002},{"$f":"Table2[[#This Row],[Pret lei fara tva]]*6.67%","v":447.66638799999998},{"$f":"Table2[[#This Row],[Pret lei fara tva]]*7.58%","v":508.74231200000008},{"$f":"Table2[[#This Row],[Pret lei fara tva]]*8.09%","v":542.971676},{"$f":"VLOOKUP(Table2[[#This Row],[Part Number]],Query2!A:D,2,0)","v":100},{"$f":"VLOOKUP(Table2[[#This Row],[Part Number]],Query2!A:D,3,0)","v":4},"14.2\"","Space Black","Apple M5 (CPU 10-core, GPU 10-core, Neural Engine16-core)","16GB","512GB","INT KB","Standard"]

{"sheet":"MacMini","index":2,"n_rows":16,"n_cols":17,"rows_kept":16,"cut":false,"hidden":false,"merged":[[12,3,13,3]]}
[]
[]
[]
[]
[]
[]
[]
[]
[]
[]
[]
[]
[null,null,null,"Mac Mini"]
[]
["Producator","Part Number","Apple Categ","Descriere","Garantie Standard ","Pret lei fara tva","Bonus Push-Sales Rebate Ianuarie (CN la final de luna) lei buc","Bonus Trade-IN (exclude valoare buy-back) lei buc","Garantie + 12 Luni lei fara tva","Garantie + 24 Luni lei fara tva","Garantie +36 Luni lei fara tva","Garantie + 48 Luni lei fara tva","Stoc","Rezervat","Procesor","Ram","Stocare"]
["Apple","MU9D3ZE/A","Mac Mini","Mac mini: Apple M4 (CPU 10-core, GPU 10-core, Neural Engine 16-core)/16GB/256GB","12 Luni",{"$f":"VLOOKUP(Table5[[#This Row],[Part Number]],Query2!A:D,4,0)","v":2647.01},200,250,{"$f":"Table5[[#This Row],[Pret lei fara tva]]*4.25%","v":112.49792500000002},{"$f":"Table5[[#This Row],[Pret lei fara tva]]*6.67%","v":176.555567},{"$f":"Table5[[#This Row],[Pret lei fara tva]]*7.58%","v":200.64335800000003},{"$f":"Table5[[#This Row],[Pret lei fara tva]]*8.09%","v":214.14310900000001},{"$f":"VLOOKUP(Table5[[#This Row],[Part Number]],Query2!A:D,2,0)","v":100},{"$f":"VLOOKUP(Table5[[#This Row],[Part Number]],Query2!A:D,3,0)","v":0}," Apple M4 (CPU 10-core, GPU 10-core, Neural Engine 16-core)","16GB","256GB"]

{"sheet":"Mac Studio","index":3,"n_rows":16,"n_cols":17,"rows_kept":16,"cut":false,"hidden":false,"merged":[[12,3,13,3]]}
[]
[]
[]
[]
[]
[]
[]
[]
[]
[]
[]
[]
[null,null,null,"Mac Studio"]
[]
["Producator","Part Number","Apple Categ","Descriere","Garantie Standard ","Pret lei fara tva","Bonus Push-Sales Rebate Ianuarie (CN la final de luna) lei buc","Bonus Trade-IN (exclude valoare buy-back) lei buc","Garantie + 12 Luni lei fara tva","Garantie + 24 Luni lei fara tva","Garantie +36 Luni lei fara tva","Garantie + 48 Luni lei fara tva","Stoc","Rezervat","Procesor","Ram","Stocare"]
["Apple","MU963ZE/A","Mac Studio","Apple Mac Studio M4 Max (CPU 14-core, GPU 32-core, Neural Engine 16-Core)/36GB/512GB","12 Luni",{"$f":"VLOOKUP(Table6[[#This Row],[Part Number]],Query2!A:D,4,0)","v":8524.8799999999992},200,500,{"$f":"Table6[[#This Row],[Pret lei fara tva]]*4.25%","v":362.30739999999997},{"$f":"Table6[[#This Row],[Pret lei fara tva]]*6.67%","v":568.60949599999992},{"$f":"Table6[[#This Row],[Pret lei fara tva]]*7.58%","v":646.18590399999994},{"$f":"Table6[[#This Row],[Pret lei fara tva]]*8.09%","v":689.66279199999997},{"$f":"VLOOKUP(Table6[[#This Row],[Part Number]],Query2!A:D,2,0)","v":14},{"$f":"VLOOKUP(Table6[[#This Row],[Part Number]],Query2!A:D,3,0)","v":0},"M4 Max (CPU 14-core, GPU 32-core, Neural Engine 16-Core)","512GB","512GB"]

{"sheet":"iMac","index":4,"n_rows":16,"n_cols":18,"rows_kept":16,"cut":false,"hidden":false,"merged":[[12,3,13,3]]}
[]
[]
[]
[]
[]
[]
[]
[]
[]
[]
[]
[]
[null,null,null,"iMac"]
[]
["Producator","Part Number","Apple Categ","Descriere","Garantie Standard ","Pret lei fara tva","Bonus Push-Sales Rebate Ianuarie (CN la final de luna) lei buc","Bonus Trade-IN (exclude valoare buy-back) lei buc","Garantie + 12 Luni lei fara tva","Garantie + 24 Luni lei fara tva","Garantie +36 Luni lei fara tva","Garantie + 48 Luni lei fara tva","Stoc","Rezervat","Procesor","Ram","Stocare","Culoare"]
["Apple","MWUC3RO/A","iMac","Apple iMAC 24\" Retina 4.5k/ Apple M4 (CPU 8-core, GPU 8-core, Neural Engine 16-core)/16GB/256GB - Silver - INT KB (2024)","12 Luni",{"$f":"VLOOKUP(Table7[[#This Row],[Part Number]],Query2!A:D,4,0)","v":5553.39},200,500,{"$f":"Table7[[#This Row],[Pret lei fara tva]]*4.25%","v":236.01907500000004},{"$f":"Table7[[#This Row],[Pret lei fara tva]]*6.67%","v":370.411113},{"$f":"Table7[[#This Row],[Pret lei fara tva]]*7.58%","v":420.94696200000004},{"$f":"Table7[[#This Row],[Pret lei fara tva]]*8.09%","v":449.269251},{"$f":"VLOOKUP(Table7[[#This Row],[Part Number]],Query2!A:D,2,0)","v":19},{"$f":"VLOOKUP(Table7[[#This Row],[Part Number]],Query2!A:D,3,0)","v":0},"Apple M4 (CPU 8-core, GPU 8-core, Neural Engine 16-core)","16GB","256GB",{"$f":"INDEX(_xlfn.TEXTSPLIT(TRIM(Table7[[#This Row],[Descriere]]), \" \"), 16)","v":"Silver"}]

{"sheet":"Mac Accesories","index":5,"n_rows":16,"n_cols":8,"rows_kept":16,"cut":false,"hidden":false,"merged":[[12,3,13,3]]}
[]
[]
[]
[]
[]
[]
[]
[]
[]
[]
[]
[]
[null,null,null,"Mac Accessories"]
[]
["Producator","Part Number","Apple Categ","Descriere","Garantie Standard","Pret lei fara tva","Stoc","Rezervat"]
["Apple","MW2N3Z/A","Apple Mac Accessories","Power Adapter Extension Cable","12 Luni",{"$f":"VLOOKUP(Table11[[#This Row],[Part Number]],Query2!A:D,4,0)","v":83.79},{"$f":"VLOOKUP(Table11[[#This Row],[Part Number]],Query2!A:D,2,0)","v":5},{"$f":"VLOOKUP(Table11[[#This Row],[Part Number]],Query2!A:D,3,0)","v":0}]

{"sheet":"Display","index":6,"n_rows":16,"n_cols":12,"rows_kept":16,"cut":false,"hidden":false,"merged":[[12,3,13,3]]}
[]
[]
[]
[]
[]
[]
[]
[]
[]
[]
[]
[]
[null,null,null,"Display"]
[]
["Producator","Part Number","Apple Categ","Descriere","Garantie Standard","Pret lei fara tva","Garantie + 12 Luni lei fara tva","Garantie + 24 Luni lei fara tva","Garantie +36 Luni lei fara tva","Garantie + 48 Luni lei fara tva","Stoc","Rezervat"]
["Apple","MYJG3Z/A","Displays","Apple Studio Display - Standard Glass - Tilt-Adjustable Stand","12 Luni",{"$f":"VLOOKUP(Table16[[#This Row],[Part Number]],Query2!A:D,4,0)","v":6535.14},{"$f":"Table16[[#This Row],[Pret lei fara tva]]*4.25%","v":277.74345000000005},{"$f":"Table16[[#This Row],[Pret lei fara tva]]*6.67%","v":435.89383800000002},{"$f":"Table16[[#This Row],[Pret lei fara tva]]*7.58%","v":495.36361200000005},{"$f":"Table16[[#This Row],[Pret lei fara tva]]*8.09%","v":528.69282599999997},{"$f":"VLOOKUP(Table16[[#This Row],[Part Number]],Query2!A:D,2,0)","v":27},{"$f":"VLOOKUP(Table16[[#This Row],[Part Number]],Query2!A:D,3,0)","v":0}]

{"sheet":"iPad","index":7,"n_rows":16,"n_cols":18,"rows_kept":16,"cut":false,"hidden":false,"merged":[[12,3,13,3]]}
[]
[]
[]
[]
[]
[]
[]
[]
[]
[]
[]
[]
[null,null,null,"iPad"]
[]
["Producator","Part Number","Apple Categ","Descriere","Garantie Standard ","Pret lei fara tva","Garantie + 12 Luni lei fara tva","Garantie + 24 Luni lei fara tva","Garantie +36 Luni lei fara tva","Garantie + 48 Luni lei fara tva","Stoc","Rezervat","Diagonala Display","Procesor","Stocare","Wi-Fi+Cellular","Nano-Texture","Culoare"]
["Apple","MXN73HC/A","iPad Mini","Apple iPad mini (A17 Pro) Wi-Fi 128GB - Blue","12 Luni",{"$f":"VLOOKUP(Table8[[#This Row],[Part Number]],Query2!A:D,4,0)","v":2149.98},{"$f":"Table8[[#This Row],[Pret lei fara tva]]*4.25%","v":91.374150000000014},{"$f":"Table8[[#This Row],[Pret lei fara tva]]*6.67%","v":143.40366599999999},{"$f":"Table8[[#This Row],[Pret lei fara tva]]*7.58%","v":162.96848400000002},{"$f":"Table8[[#This Row],[Pret lei fara tva]]*8.09%","v":173.93338199999999},{"$f":"VLOOKUP(Table8[[#This Row],[Part Number]],Query2!A:D,2,0)","v":69},{"$f":"VLOOKUP(Table8[[#This Row],[Part Number]],Query2!A:D,3,0)","v":0},"8.3\"","A17 Pro","128GB","Wi-Fi","Standard","Blue"]

{"sheet":"iPad Accesories","index":8,"n_rows":16,"n_cols":8,"rows_kept":16,"cut":false,"hidden":false,"merged":[[12,3,13,3]]}
[]
[]
[]
[]
[]
[]
[]
[]
[]
[]
[]
[]
[null,null,null,"iPad Accessories"]
[]
["Producator","Part Number","Apple Categ","Descriere","Garantie Standard","Pret lei fara tva","Stoc","Rezervat"]
["Apple","MGYX4LB/A","SMART KEYBOARD, APPLE PENCIL AND APPLE PENCIL ACCESSORIES","Magic Keyboard for iPad Air 11-inch (M3) - US English - Black","12 Luni",{"$f":"VLOOKUP(Table12[[#This Row],[Part Number]],Query2!A:D,4,0)","v":1239.9000000000001},{"$f":"VLOOKUP(Table12[[#This Row],[Part Number]],Query2!A:D,2,0)","v":0},{"$f":"VLOOKUP(Table12[[#This Row],[Part Number]],Query2!A:D,3,0)","v":16}]

{"sheet":"Watch","index":9,"n_rows":16,"n_cols":18,"rows_kept":16,"cut":false,"hidden":false,"merged":[[12,4,13,4]]}
[]
[]
[]
[]
[]
[]
[]
[]
[]
[]
[]
[]
[null,null,null,null,"Watch"]
[]
["Producator","Part Number","Apple Categ","Descriere","Garantie Standard ","Garantie Standard","Pret lei fara tva","Garantie + 12 Luni lei fara tva","Garantie + 24 Luni lei fara tva","Garantie +36 Luni lei fara tva","Garantie + 48 Luni lei fara tva","Stoc","Rezervat","Culoare","Metal","Dimensiune","Wi-Fi+Cellular","Tip Curea"]
["Apple","MEH34ET/A","Watch SE 3","Apple Watch SE 3 GPS 40mm Starlight Aluminium Case with Starlight Sport Band - S/M",null,"12 Luni",{"$f":"VLOOKUP(Table9[[#This Row],[Part Number]],Query2!A:D,4,0)","v":{"$error":"#N/A"}},{"$f":"Table9[[#This Row],[Pret lei fara tva]]*4.25%","v":{"$error":"#N/A"}},{"$f":"Table9[[#This Row],[Pret lei fara tva]]*6.67%","v":{"$error":"#N/A"}},{"$f":"Table9[[#This Row],[Pret lei fara tva]]*7.58%","v":{"$error":"#N/A"}},{"$f":"Table9[[#This Row],[Pret lei fara tva]]*8.09%","v":{"$error":"#N/A"}},{"$f":"VLOOKUP(Table9[[#This Row],[Part Number]],Query2!A:D,2,0)","v":{"$error":"#N/A"}},{"$f":"VLOOKUP(Table9[[#This Row],[Part Number]],Query2!A:D,3,0)","v":{"$error":"#N/A"}},"Starlight","Aluminium","40mm","Nu","Sport Band"]

{"sheet":"Watch Accesories","index":10,"n_rows":16,"n_cols":8,"rows_kept":16,"cut":false,"hidden":false,"merged":[[12,3,13,3]]}
[]
[]
[]
[]
[]
[]
[]
[]
[]
[]
[]
[]
[null,null,null,"Watch Accessories"]
[]
["Producator","Part Number","Apple Categ","Descriere","Garantie Standard","Pret lei fara tva","Stoc","Rezervat"]
["Apple","MT0H3ZM/A","Watch Accessories","Apple Apple Watch Magnetic Fast Charger to USB-C Cable (1 m)","12 Luni",{"$f":"VLOOKUP(Table13[[#This Row],[Part Number]],Query2!A:D,4,0)","v":{"$error":"#N/A"}},{"$f":"VLOOKUP(Table13[[#This Row],[Part Number]],Query2!A:D,2,0)","v":{"$error":"#N/A"}},{"$f":"VLOOKUP(Table13[[#This Row],[Part Number]],Query2!A:D,3,0)","v":{"$error":"#N/A"}}]

{"sheet":"iPhone","index":11,"n_rows":16,"n_cols":14,"rows_kept":16,"cut":false,"hidden":false,"merged":[]}
[]
[]
[]
[]
[]
[]
[]
[]
[]
[]
[]
[]
[]
[]
["Producator","Part Number","Apple Categ","Descriere","Garantie Standard ","Pret lei fara tva","Garantie + 12 Luni lei fara tva","Garantie + 24 Luni lei fara tva","Garantie +36 Luni lei fara tva","Garantie + 48 Luni lei fara tva","Stoc","Rezervat","Culoare","Stocare"]
["Apple","MTP03RX/A","iPhone 15","iPhone 15 128GB Black","12 Luni",{"$f":"VLOOKUP(Table10[[#This Row],[Part Number]],Query2!A:D,4,0)","v":2572.1799999999998},{"$f":"Table10[[#This Row],[Pret lei fara tva]]*4.25%","v":109.31765},{"$f":"Table10[[#This Row],[Pret lei fara tva]]*6.67%","v":171.56440599999999},{"$f":"Table10[[#This Row],[Pret lei fara tva]]*7.58%","v":194.97124400000001},{"$f":"Table10[[#This Row],[Pret lei fara tva]]*8.09%","v":208.08936199999999},{"$f":"VLOOKUP(Table10[[#This Row],[Part Number]],Query2!A:D,2,0)","v":100},{"$f":"VLOOKUP(Table10[[#This Row],[Part Number]],Query2!A:D,3,0)","v":75},"Black","128GB"]

{"sheet":"iPhone Accesories","index":12,"n_rows":16,"n_cols":8,"rows_kept":16,"cut":false,"hidden":false,"merged":[[12,3,13,3]]}
[]
[]
[]
[]
[]
[]
[]
[]
[]
[]
[]
[]
[null,null,null,"iPhone Accessories"]
[]
["Producator","Part Number","Apple Categ","Descriere","Garantie Standard","Pret lei fara tva","Stoc","Rezervat"]
["Apple","MA6A4ZM/A","IOS Accessories","iPhone 16 Clear Case with MagSafe","12 Luni",{"$f":"VLOOKUP(Table14[[#This Row],[Part Number]],Query2!A:D,4,0)","v":188.5},{"$f":"VLOOKUP(Table14[[#This Row],[Part Number]],Query2!A:D,2,0)","v":86},{"$f":"VLOOKUP(Table14[[#This Row],[Part Number]],Query2!A:D,3,0)","v":0}]

{"sheet":"Casti","index":13,"n_rows":16,"n_cols":8,"rows_kept":16,"cut":false,"hidden":false,"merged":[[12,3,13,3]]}
[]
[]
[]
[]
[]
[]
[]
[]
[]
[]
[]
[]
[null,null,null,"Casti"]
[]
["Producator","Part Number","Apple Categ","Descriere","Garantie Standard","Pret lei fara tva","Stoc","Rezervat"]
["Apple","MXP63ZM/A","Headphones /AIRPODS & Speakers","Apple AirPods 4 (USB-C)","12 Luni",{"$f":"VLOOKUP(Table15[[#This Row],[Part Number]],Query2!A:D,4,0)","v":549.37},{"$f":"VLOOKUP(Table15[[#This Row],[Part Number]],Query2!A:D,2,0)","v":100},{"$f":"VLOOKUP(Table15[[#This Row],[Part Number]],Query2!A:D,3,0)","v":35}]

{"sheet":"Query2","index":14,"n_rows":13,"n_cols":4,"rows_kept":13,"cut":false,"hidden":false,"merged":[]}
["Code","Stoc","Rezervat","Pret"]
["MU9D3ZE/A",100,0,2647.01]
["MXN73HC/A",69,0,2149.98]
["MU963ZE/A",14,0,8524.8799999999992]
["MWUC3RO/A",19,0,5553.39]
["MTP03RX/A",100,75,2572.1799999999998]
["MW2N3Z/A",5,0,83.79]
["MC7W4ZE/A",0,0,3641.44]
["MGYX4LB/A",0,16,1239.9000000000001]
["MA6A4ZM/A",86,0,188.5]
["MDE04RO/A",100,4,6711.64]
["MYJG3Z/A",27,0,6535.14]
["MXP63ZM/A",100,35,549.37]